[Event "Titled Tuesday Blitz February 28 Late 2023"]
[White "Mendez Fortes, Eduardo Jesus"]
[Black "Madaminov, Mukhiddin"]
[WhiteFideId "3502376"]
[BlackFideId "14210703"]
[WhiteElo "2307"]
[BlackElo "2511"]
[Result "0-1"]
[Round "03"]
[TimeControl "180+2"]
[Date "2023.02.28"]
[WhiteClock "0:00:03"]
[BlackClock "0:00:27"]

1. e4 {[%clk 0:03:00]}  e5 {[%clk 0:02:58]} 2. Nf3 {[%clk 0:03:00]}  Nc6 {[%clk 0:02:59]} 3. Bb5 {[%clk 0:02:59]}  a6 {[%clk 0:02:59]} 4. Ba4 {[%clk 0:02:59]}  Nf6 {[%clk 0:02:59]} 5. O-O {[%clk 0:02:59]}  Nxe4 {[%clk 0:02:59]} 6. d4 {[%clk 0:02:58]}  b5 {[%clk 0:03:00]} 7. Bb3 {[%clk 0:02:58]}  d5 {[%clk 0:03:00]} 8. dxe5 {[%clk 0:02:58]}  Be6 {[%clk 0:03:01]} 9. c3 {[%clk 0:02:58]}  Be7 {[%clk 0:03:01]} 10. Nbd2 {[%clk 0:02:57]}  O-O {[%clk 0:03:01]} 11. Bc2 {[%clk 0:02:54]}  f5 {[%clk 0:03:01]} 12. Nb3 {[%clk 0:02:40]}  Qd7 {[%clk 0:03:00]} 13. Nfd4 {[%clk 0:02:31]}  Nxd4 {[%clk 0:02:57]} 14. Nxd4 {[%clk 0:02:27]}  c5 {[%clk 0:02:56]} 15. Nxe6 {[%clk 0:02:25]}  Qxe6 {[%clk 0:02:57]} 16. f3 {[%clk 0:02:22]}  Ng5 {[%clk 0:02:57]} 17. Bxg5 {[%clk 0:02:22]}  Bxg5 {[%clk 0:02:58]} 18. f4 {[%clk 0:02:22]}  Be7 {[%clk 0:02:58]} 19. Qf3 {[%clk 0:02:19]}  c4 {[%clk 0:02:54]} 20. Kh1 {[%clk 0:02:13]}  g6 {[%clk 0:02:53]} 21. h3 {[%clk 0:02:10]}  Bc5 {[%clk 0:02:51]} 22. Rad1 {[%clk 0:02:05]}  Rad8 {[%clk 0:02:49]} 23. Rd2 {[%clk 0:02:05]}  Rd7 {[%clk 0:02:40]} 24. b3 {[%clk 0:02:04]}  Rfd8 {[%clk 0:02:38]} 25. Rfd1 {[%clk 0:02:03]}  Kg7 {[%clk 0:02:29]} 26. g4 {[%clk 0:02:02]}  fxg4 {[%clk 0:02:29]} 27. hxg4 {[%clk 0:02:00]}  d4 {[%clk 0:01:57]} 28. bxc4 {[%clk 0:01:46]}  bxc4 {[%clk 0:01:21]} 29. cxd4 {[%clk 0:01:31]}  Bxd4 {[%clk 0:01:21]} 30. Qe4 {[%clk 0:01:26]}  Bc3 {[%clk 0:00:37]} 31. Rxd7+ {[%clk 0:01:22]}  Rxd7 {[%clk 0:00:38]} 32. Rxd7+ {[%clk 0:01:22]}  Qxd7 {[%clk 0:00:39]} 33. Qxc4 {[%clk 0:01:15]}  Qd2 {[%clk 0:00:39]} 34. Qe4 {[%clk 0:01:06]}  Bd4 {[%clk 0:00:28]} 35. Qb7+ {[%clk 0:00:22]}  Kh6 {[%clk 0:00:28]} 36. g5+ {[%clk 0:00:13]}  Kh5 {[%clk 0:00:28]} 37. Qf3+ {[%clk 0:00:03]}  Kh4 {[%clk 0:00:28]} 38. Be4 {[%clk 0:00:03]}  Qe1+ {[%clk 0:00:27]} 39. Kh2 {[%clk 0:00:03]}  Qg1# {[%clk 0:00:27]} 0-1


[Site "https://www.chess.com"]

[Event "Titled Tuesday Blitz February 28 Late 2023"]
[White "Zampronha, Wladimir Camilo"]
[Black "Perez Ponsa, Federico"]
[WhiteFideId "2103087"]
[BlackFideId "117927"]
[WhiteElo "2176"]
[BlackElo "2592"]
[Result "0-1"]
[Round "03"]
[TimeControl "180+2"]
[Date "2023.02.28"]
[WhiteClock "0:02:04"]
[BlackClock "0:01:57"]

1. e4 {[%clk 0:03:00]}  c5 {[%clk 0:02:57]} 2. Nf3 {[%clk 0:03:01]}  d6 {[%clk 0:02:57]} 3. d4 {[%clk 0:03:02]}  cxd4 {[%clk 0:02:58]} 4. Nxd4 {[%clk 0:03:02]}  Nf6 {[%clk 0:02:59]} 5. Nc3 {[%clk 0:03:03]}  a6 {[%clk 0:02:59]} 6. Bg5 {[%clk 0:03:03]}  Nbd7 {[%clk 0:02:59]} 7. f4 {[%clk 0:03:03]}  Qa5 {[%clk 0:02:59]} 8. Qd2 {[%clk 0:02:57]}  e6 {[%clk 0:02:53]} 9. Nb3 {[%clk 0:02:56]}  Qc7 {[%clk 0:02:53]} 10. O-O-O {[%clk 0:02:56]}  b5 {[%clk 0:02:52]} 11. Bd3 {[%clk 0:02:54]}  Bb7 {[%clk 0:02:49]} 12. Rhe1 {[%clk 0:02:53]}  Be7 {[%clk 0:02:50]} 13. Bxf6 {[%clk 0:02:26]}  Nxf6 {[%clk 0:02:39]} 14. e5 {[%clk 0:02:21]}  dxe5 {[%clk 0:02:40]} 15. fxe5 {[%clk 0:02:21]}  Nd5 {[%clk 0:02:22]} 16. Nxd5 {[%clk 0:02:17]}  Bxd5 {[%clk 0:02:23]} 17. Be4 {[%clk 0:02:14]}  Rd8 {[%clk 0:02:17]} 18. Qa5 {[%clk 0:02:05]}  Qxa5 {[%clk 0:01:56]} 19. Nxa5 {[%clk 0:02:06]}  Bxe4 {[%clk 0:01:57]} 20. Rxe4 {[%clk 0:02:04]}  Bg5+ {[%clk 0:01:57]} 0-1


[Site "https://www.chess.com"]

[Event "Titled Tuesday Blitz February 28 Late 2023"]
[White "Kravtsiv, Martyn"]
[Black "Fajdetic, Hrvoje"]
[WhiteFideId "14113147"]
[BlackFideId "14501945"]
[WhiteElo "2695"]
[BlackElo "2185"]
[Result "1-0"]
[Round "03"]
[TimeControl "180+2"]
[Date "2023.02.28"]
[WhiteClock "0:01:31"]
[BlackClock "0:00:04"]

1. e4 {[%clk 0:03:00]}  e6 {[%clk 0:02:57]} 2. d3 {[%clk 0:02:58]}  c5 {[%clk 0:02:57]} 3. g3 {[%clk 0:02:57]}  Nc6 {[%clk 0:02:57]} 4. Bg2 {[%clk 0:02:57]}  d6 {[%clk 0:02:55]} 5. f4 {[%clk 0:02:57]}  e5 {[%clk 0:02:53]} 6. Nc3 {[%clk 0:02:54]}  g6 {[%clk 0:02:52]} 7. h4 {[%clk 0:02:51]}  h5 {[%clk 0:02:51]} 8. Be3 {[%clk 0:02:49]}  Nd4 {[%clk 0:02:47]} 9. Qd2 {[%clk 0:02:47]}  Bg4 {[%clk 0:02:44]} 10. Nd5 {[%clk 0:02:39]}  Nf6 {[%clk 0:02:32]} 11. Nxf6+ {[%clk 0:02:33]}  Qxf6 {[%clk 0:02:31]} 12. c3 {[%clk 0:02:33]}  Ne6 {[%clk 0:02:02]} 13. Ne2 {[%clk 0:02:23]}  Bh6 {[%clk 0:01:49]} 14. fxe5 {[%clk 0:02:22]}  Bxe3 {[%clk 0:01:48]} 15. exf6 {[%clk 0:02:22]}  Bxd2+ {[%clk 0:01:47]} 16. Kxd2 {[%clk 0:02:23]}  g5 {[%clk 0:01:17]} 17. Raf1 {[%clk 0:02:20]}  O-O-O {[%clk 0:01:11]} 18. Bh3 {[%clk 0:02:11]}  Bxh3 {[%clk 0:01:05]} 19. Rxh3 {[%clk 0:02:10]}  g4 {[%clk 0:01:04]} 20. Rhh1 {[%clk 0:02:06]}  Rh6 {[%clk 0:00:57]} 21. Rf5 {[%clk 0:02:04]}  Rg8 {[%clk 0:00:45]} 22. Rhf1 {[%clk 0:01:54]}  Kd7 {[%clk 0:00:43]} 23. Ke3 {[%clk 0:01:53]}  Rgg6 {[%clk 0:00:43]} 24. d4 {[%clk 0:01:53]}  cxd4+ {[%clk 0:00:41]} 25. cxd4 {[%clk 0:01:54]}  Nc7 {[%clk 0:00:40]} 26. Nf4 {[%clk 0:01:41]}  Rxf6 {[%clk 0:00:38]} 27. Nxh5 {[%clk 0:01:42]}  Rxf5 {[%clk 0:00:34]} 28. Rxf5 {[%clk 0:01:43]}  Ke7 {[%clk 0:00:30]} 29. Nf4 {[%clk 0:01:43]}  Rh8 {[%clk 0:00:18]} 30. Rg5 {[%clk 0:01:42]}  Rc8 {[%clk 0:00:13]} 31. Rxg4 {[%clk 0:01:41]}  Ne6 {[%clk 0:00:10]} 32. Nxe6 {[%clk 0:01:40]}  Kxe6 {[%clk 0:00:10]} 33. h5 {[%clk 0:01:39]}  Rc2 {[%clk 0:00:07]} 34. h6 {[%clk 0:01:38]}  Rc8 {[%clk 0:00:03]} 35. Rh4 {[%clk 0:01:35]}  Rh8 {[%clk 0:00:03]} 36. Kf4 {[%clk 0:01:33]}  Kf6 {[%clk 0:00:04]} 37. h7 {[%clk 0:01:31]}  Kg7 {[%clk 0:00:04]} 38. Kf5 {[%clk 0:01:31]}  Rxh7 {[%clk 0:00:04]} 39. Rxh7+ {[%clk 0:01:30]}  Kxh7 {[%clk 0:00:05]} 40. Kf6 {[%clk 0:01:31]}  Kg8 {[%clk 0:00:05]} 41. Ke7 {[%clk 0:01:31]}  d5 {[%clk 0:00:05]} 42. exd5 {[%clk 0:01:31]}  f5 {[%clk 0:00:05]} 43. d6 {[%clk 0:01:32]}  f4 {[%clk 0:00:04]} 44. gxf4 {[%clk 0:01:31]} 1-0


[Site "https://www.chess.com"]

[Event "Titled Tuesday Blitz February 28 Late 2023"]
[White "Paravyan, David"]
[Black "Sieciechowicz, Marcin"]
[WhiteFideId "4194985"]
[BlackFideId "1130170"]
[WhiteElo "2577"]
[BlackElo "2302"]
[Result "1-0"]
[Round "03"]
[TimeControl "180+2"]
[Date "2023.02.28"]
[WhiteClock "0:01:38"]
[BlackClock "0:00:07"]

1. e4 {[%clk 0:03:00]}  e5 {[%clk 0:02:58]} 2. Nf3 {[%clk 0:03:01]}  Nc6 {[%clk 0:02:56]} 3. Bb5 {[%clk 0:03:01]}  Nf6 {[%clk 0:02:56]} 4. O-O {[%clk 0:03:01]}  Nxe4 {[%clk 0:02:55]} 5. d4 {[%clk 0:03:01]}  Nd6 {[%clk 0:02:53]} 6. Bxc6 {[%clk 0:03:02]}  dxc6 {[%clk 0:02:54]} 7. dxe5 {[%clk 0:03:02]}  Nf5 {[%clk 0:02:54]} 8. Qxd8+ {[%clk 0:03:03]}  Kxd8 {[%clk 0:02:55]} 9. Nc3 {[%clk 0:03:03]}  Be7 {[%clk 0:02:52]} 10. h3 {[%clk 0:03:01]}  h5 {[%clk 0:02:52]} 11. Ne2 {[%clk 0:02:59]}  h4 {[%clk 0:02:49]} 12. Rd1+ {[%clk 0:02:55]}  Ke8 {[%clk 0:02:47]} 13. Bg5 {[%clk 0:02:56]}  Bxg5 {[%clk 0:02:26]} 14. Nxg5 {[%clk 0:02:57]}  Rh5 {[%clk 0:02:26]} 15. Nf3 {[%clk 0:02:51]}  Be6 {[%clk 0:02:13]} 16. Nf4 {[%clk 0:02:51]}  Rh6 {[%clk 0:02:14]} 17. Ng5 {[%clk 0:02:51]}  Ke7 {[%clk 0:01:58]} 18. Rd2 {[%clk 0:02:51]}  Re8 {[%clk 0:01:44]} 19. Nfxe6 {[%clk 0:02:45]}  Rxe6 {[%clk 0:00:50]} 20. Nxe6 {[%clk 0:02:44]}  Kxe6 {[%clk 0:00:51]} 21. Rad1 {[%clk 0:02:43]}  Re7 {[%clk 0:00:46]} 22. Rd8 {[%clk 0:02:32]}  c5 {[%clk 0:00:45]} 23. c3 {[%clk 0:02:31]}  b6 {[%clk 0:00:45]} 24. f4 {[%clk 0:02:26]}  a5 {[%clk 0:00:44]} 25. Kf2 {[%clk 0:02:26]}  f6 {[%clk 0:00:28]} 26. Re1 {[%clk 0:02:26]}  Kf7 {[%clk 0:00:26]} 27. exf6 {[%clk 0:02:26]}  gxf6 {[%clk 0:00:20]} 28. Rxe7+ {[%clk 0:02:26]}  Kxe7 {[%clk 0:00:21]} 29. Rh8 {[%clk 0:02:26]}  Ke6 {[%clk 0:00:19]} 30. Kf3 {[%clk 0:02:26]}  c4 {[%clk 0:00:19]} 31. Rh7 {[%clk 0:02:21]}  c6 {[%clk 0:00:16]} 32. a4 {[%clk 0:02:17]}  Kd6 {[%clk 0:00:12]} 33. Rh5 {[%clk 0:02:15]}  Ke6 {[%clk 0:00:11]} 34. Rh8 {[%clk 0:02:14]}  Kd5 {[%clk 0:00:10]} 35. Re8 {[%clk 0:02:04]}  b5 {[%clk 0:00:10]} 36. Ra8 {[%clk 0:02:04]}  Kc5 {[%clk 0:00:08]} 37. axb5 {[%clk 0:01:39]}  cxb5 {[%clk 0:00:07]} 38. Rxa5 {[%clk 0:01:38]} 1-0


[Site "https://www.chess.com"]

[Event "Titled Tuesday Blitz February 28 Late 2023"]
[White "Deac, Bogdan-Daniel"]
[Black "Martynov, Pavel"]
[WhiteFideId "1226380"]
[BlackFideId "4101260"]
[WhiteElo "2649"]
[BlackElo "2314"]
[Result "1-0"]
[Round "03"]
[TimeControl "180+2"]
[Date "2023.02.28"]
[WhiteClock "0:01:23"]
[BlackClock "0:00:24"]

1. b3 {[%clk 0:03:00]}  e6 {[%clk 0:02:59]} 2. Bb2 {[%clk 0:03:01]}  d5 {[%clk 0:03:00]} 3. Nf3 {[%clk 0:03:01]}  c5 {[%clk 0:03:01]} 4. e3 {[%clk 0:03:01]}  Nc6 {[%clk 0:03:01]} 5. Bb5 {[%clk 0:03:01]}  Bd7 {[%clk 0:03:00]} 6. O-O {[%clk 0:03:00]}  Nf6 {[%clk 0:03:01]} 7. d3 {[%clk 0:02:57]}  Bd6 {[%clk 0:03:00]} 8. Bxc6 {[%clk 0:02:56]}  Bxc6 {[%clk 0:02:59]} 9. Ne5 {[%clk 0:02:57]}  Rc8 {[%clk 0:02:49]} 10. f4 {[%clk 0:02:55]}  O-O {[%clk 0:02:48]} 11. Nd2 {[%clk 0:02:56]}  Nd7 {[%clk 0:02:46]} 12. Nxc6 {[%clk 0:02:55]}  Rxc6 {[%clk 0:02:46]} 13. Qg4 {[%clk 0:02:55]}  Nf6 {[%clk 0:02:42]} 14. Qg3 {[%clk 0:02:51]}  Qe7 {[%clk 0:02:21]} 15. c4 {[%clk 0:02:39]}  Ne8 {[%clk 0:02:17]} 16. Qf3 {[%clk 0:02:19]}  Nc7 {[%clk 0:02:14]} 17. e4 {[%clk 0:02:19]}  dxe4 {[%clk 0:01:55]} 18. dxe4 {[%clk 0:02:18]}  e5 {[%clk 0:01:55]} 19. f5 {[%clk 0:02:18]}  Ne8 {[%clk 0:01:52]} 20. Nb1 {[%clk 0:02:07]}  Nf6 {[%clk 0:01:46]} 21. Bc1 {[%clk 0:02:07]}  b5 {[%clk 0:01:20]} 22. cxb5 {[%clk 0:02:01]}  Rb6 {[%clk 0:01:19]} 23. Nc3 {[%clk 0:01:55]}  h6 {[%clk 0:01:05]} 24. g4 {[%clk 0:01:34]}  c4 {[%clk 0:00:37]} 25. g5 {[%clk 0:01:33]}  hxg5 {[%clk 0:00:35]} 26. Bxg5 {[%clk 0:01:34]}  cxb3 {[%clk 0:00:32]} 27. Nd5 {[%clk 0:01:32]}  Nxd5 {[%clk 0:00:26]} 28. Bxe7 {[%clk 0:01:31]}  Nxe7 {[%clk 0:00:27]} 29. Qxb3 {[%clk 0:01:30]}  Rfb8 {[%clk 0:00:25]} 30. a4 {[%clk 0:01:29]}  Bc5+ {[%clk 0:00:25]} 31. Kh1 {[%clk 0:01:28]}  a6 {[%clk 0:00:26]} 32. Rac1 {[%clk 0:01:28]}  Bd4 {[%clk 0:00:26]} 33. Rc7 {[%clk 0:01:24]}  R6b7 {[%clk 0:00:24]} 34. Rxb7 {[%clk 0:01:22]}  Rxb7 {[%clk 0:00:25]} 35. f6 {[%clk 0:01:22]}  gxf6 {[%clk 0:00:24]} 36. Rxf6 {[%clk 0:01:23]} 1-0


[Site "https://www.chess.com"]

[Event "Titled Tuesday Blitz February 28 Late 2023"]
[White "Zhu, Jiner"]
[Black "Durarbayli, Vasif"]
[WhiteFideId "8608059"]
[BlackFideId "13402935"]
[WhiteElo "2384"]
[BlackElo "2543"]
[Result "0-1"]
[Round "03"]
[TimeControl "180+2"]
[Date "2023.02.28"]
[WhiteClock "0:00:02"]
[BlackClock "0:00:10"]

1. e4 {[%clk 0:03:00]}  c5 {[%clk 0:02:59]} 2. Nf3 {[%clk 0:03:00]}  d6 {[%clk 0:03:00]} 3. Bb5+ {[%clk 0:02:59]}  Nd7 {[%clk 0:02:59]} 4. d4 {[%clk 0:02:55]}  cxd4 {[%clk 0:02:59]} 5. Qxd4 {[%clk 0:02:56]}  a6 {[%clk 0:02:59]} 6. Bxd7+ {[%clk 0:02:56]}  Bxd7 {[%clk 0:03:00]} 7. Nc3 {[%clk 0:02:55]}  e5 {[%clk 0:02:57]} 8. Qd3 {[%clk 0:02:55]}  Rc8 {[%clk 0:02:55]} 9. O-O {[%clk 0:02:54]}  h6 {[%clk 0:02:51]} 10. Rd1 {[%clk 0:02:47]}  Nf6 {[%clk 0:02:50]} 11. a4 {[%clk 0:02:47]}  Be7 {[%clk 0:02:46]} 12. Nd2 {[%clk 0:02:47]}  Bg4 {[%clk 0:02:44]} 13. Re1 {[%clk 0:02:47]}  Be6 {[%clk 0:02:38]} 14. Nf1 {[%clk 0:02:47]}  Rc4 {[%clk 0:02:32]} 15. b3 {[%clk 0:02:19]}  Rd4 {[%clk 0:02:30]} 16. Qe2 {[%clk 0:02:15]}  Qc7 {[%clk 0:02:16]} 17. Bb2 {[%clk 0:02:15]}  O-O {[%clk 0:02:15]} 18. f3 {[%clk 0:02:04]}  Nh5 {[%clk 0:02:10]} 19. Ne3 {[%clk 0:01:59]}  Nf4 {[%clk 0:02:08]} 20. Qf2 {[%clk 0:01:52]}  Rc8 {[%clk 0:02:01]} 21. Ncd5 {[%clk 0:01:40]}  Bxd5 {[%clk 0:01:33]} 22. Nxd5 {[%clk 0:01:30]}  Rxd5 {[%clk 0:01:11]} 23. exd5 {[%clk 0:01:29]}  Qxc2 {[%clk 0:01:11]} 24. Qxc2 {[%clk 0:00:27]}  Rxc2 {[%clk 0:01:12]} 25. Bc1 {[%clk 0:00:27]}  Nxg2 {[%clk 0:00:58]} 26. Rf1 {[%clk 0:00:22]}  Bd8 {[%clk 0:00:55]} 27. a5 {[%clk 0:00:18]}  Nh4 {[%clk 0:00:47]} 28. Ba3 {[%clk 0:00:06]}  Rd2 {[%clk 0:00:29]} 29. Bxd6 {[%clk 0:00:06]}  Rxd5 {[%clk 0:00:28]} 30. Bb4 {[%clk 0:00:03]}  Bg5 {[%clk 0:00:15]} 31. Rad1 {[%clk 0:00:02]}  Nxf3+ {[%clk 0:00:14]} 32. Kh1 {[%clk 0:00:02]}  Nd4 {[%clk 0:00:14]} 33. Rd3 {[%clk 0:00:02]}  Rb5 {[%clk 0:00:14]} 34. Be1 {[%clk 0:00:02]}  Nc6 {[%clk 0:00:10]} 0-1


[Site "https://www.chess.com"]

[Event "Titled Tuesday Blitz February 28 Late 2023"]
[White "Li, Ruifeng"]
[Black "Gerzhoy, Leonid"]
[WhiteFideId "2061074"]
[BlackFideId "2806126"]
[WhiteElo "2441"]
[BlackElo "2629"]
[Result "1-0"]
[Round "03"]
[TimeControl "180+2"]
[Date "2023.02.28"]
[WhiteClock "0:00:08"]
[BlackClock "0:00:20"]

1. b3 {[%clk 0:03:00]}  d5 {[%clk 0:02:58]} 2. Bb2 {[%clk 0:03:01]}  Bg4 {[%clk 0:02:57]} 3. f3 {[%clk 0:03:01]}  Bh5 {[%clk 0:02:57]} 4. Nh3 {[%clk 0:03:02]}  c6 {[%clk 0:02:55]} 5. Nf4 {[%clk 0:03:00]}  Bg6 {[%clk 0:02:54]} 6. e3 {[%clk 0:02:44]}  Nd7 {[%clk 0:02:53]} 7. d4 {[%clk 0:02:42]}  e6 {[%clk 0:02:50]} 8. h4 {[%clk 0:02:41]}  h5 {[%clk 0:02:39]} 9. Nxg6 {[%clk 0:02:40]}  fxg6 {[%clk 0:02:38]} 10. Nc3 {[%clk 0:02:38]}  Bd6 {[%clk 0:02:36]} 11. Rh3 {[%clk 0:02:02]}  Ne7 {[%clk 0:02:22]} 12. Qd2 {[%clk 0:01:54]}  Qc7 {[%clk 0:02:15]} 13. O-O-O {[%clk 0:01:51]}  O-O-O {[%clk 0:02:15]} 14. Kb1 {[%clk 0:01:52]}  e5 {[%clk 0:02:06]} 15. dxe5 {[%clk 0:01:45]}  Bxe5 {[%clk 0:02:02]} 16. Bd3 {[%clk 0:01:35]}  Nc5 {[%clk 0:01:51]} 17. Ne2 {[%clk 0:01:20]}  Bxb2 {[%clk 0:01:46]} 18. Kxb2 {[%clk 0:01:21]}  Nxd3+ {[%clk 0:01:43]} 19. Qxd3 {[%clk 0:01:16]}  Nf5 {[%clk 0:01:42]} 20. Nd4 {[%clk 0:01:16]}  Qe5 {[%clk 0:01:38]} 21. f4 {[%clk 0:00:49]}  Qf6 {[%clk 0:01:34]} 22. Qc3 {[%clk 0:00:50]}  Rhe8 {[%clk 0:01:24]} 23. Nxf5 {[%clk 0:00:45]}  Qxc3+ {[%clk 0:01:20]} 24. Kxc3 {[%clk 0:00:46]}  gxf5 {[%clk 0:01:19]} 25. Rg3 {[%clk 0:00:46]}  Re7 {[%clk 0:01:14]} 26. Rd3 {[%clk 0:00:45]}  Rd6 {[%clk 0:01:08]} 27. Kd2 {[%clk 0:00:44]}  g6 {[%clk 0:01:06]} 28. c4 {[%clk 0:00:44]}  Red7 {[%clk 0:01:00]} 29. cxd5 {[%clk 0:00:24]}  Rxd5 {[%clk 0:00:59]} 30. Rxd5 {[%clk 0:00:25]}  Rxd5+ {[%clk 0:00:59]} 31. Ke2 {[%clk 0:00:25]}  Rd6 {[%clk 0:00:58]} 32. Rg5 {[%clk 0:00:26]}  Kd7 {[%clk 0:00:52]} 33. e4 {[%clk 0:00:26]}  fxe4 {[%clk 0:00:48]} 34. Ke3 {[%clk 0:00:23]}  Ke7 {[%clk 0:00:41]} 35. Kxe4 {[%clk 0:00:18]}  Re6+ {[%clk 0:00:30]} 36. Kf3 {[%clk 0:00:15]}  Kf7 {[%clk 0:00:22]} 37. f5 {[%clk 0:00:12]}  gxf5 {[%clk 0:00:22]} 38. Rxf5+ {[%clk 0:00:12]}  Rf6 {[%clk 0:00:22]} 39. Kf4 {[%clk 0:00:11]}  Rxf5+ {[%clk 0:00:21]} 40. Kxf5 {[%clk 0:00:11]}  c5 {[%clk 0:00:21]} 41. g4 {[%clk 0:00:08]}  hxg4 {[%clk 0:00:19]} 42. Kxg4 {[%clk 0:00:09]}  b5 {[%clk 0:00:18]} 43. Kf5 {[%clk 0:00:08]}  c4 {[%clk 0:00:17]} 44. bxc4 {[%clk 0:00:08]}  bxc4 {[%clk 0:00:17]} 45. Ke4 {[%clk 0:00:09]}  Kg6 {[%clk 0:00:17]} 46. Kd4 {[%clk 0:00:09]}  Kh5 {[%clk 0:00:18]} 47. Kxc4 {[%clk 0:00:10]}  Kxh4 {[%clk 0:00:18]} 48. Kb5 {[%clk 0:00:09]}  Kg5 {[%clk 0:00:19]} 49. Ka6 {[%clk 0:00:09]}  Kf6 {[%clk 0:00:20]} 50. Kxa7 {[%clk 0:00:09]}  Ke7 {[%clk 0:00:21]} 51. Kb7 {[%clk 0:00:07]}  Kd6 {[%clk 0:00:20]} 52. a4 {[%clk 0:00:08]} 1-0


[Site "https://www.chess.com"]

[Event "Titled Tuesday Blitz February 28 Late 2023"]
[White "Manukyan, Sargis V."]
[Black "Quispe Arteaga, Gabriel"]
[WhiteFideId "13303465"]
[BlackFideId "32059809"]
[WhiteElo "2236"]
[BlackElo "2274"]
[Result "0-1"]
[Round "03"]
[TimeControl "180+2"]
[Date "2023.02.28"]
[WhiteClock "0:00:04"]
[BlackClock "0:00:03"]

1. Nf3 {[%clk 0:03:00]}  Nf6 {[%clk 0:02:59]} 2. g3 {[%clk 0:03:00]}  b5 {[%clk 0:03:00]} 3. Bg2 {[%clk 0:02:59]}  Bb7 {[%clk 0:03:00]} 4. O-O {[%clk 0:02:59]}  e6 {[%clk 0:03:01]} 5. d4 {[%clk 0:02:59]}  c5 {[%clk 0:03:01]} 6. Na3 {[%clk 0:02:58]}  a6 {[%clk 0:02:59]} 7. c4 {[%clk 0:02:58]}  bxc4 {[%clk 0:02:57]} 8. Nxc4 {[%clk 0:02:57]}  cxd4 {[%clk 0:02:57]} 9. Qxd4 {[%clk 0:02:58]}  Nc6 {[%clk 0:02:56]} 10. Qf4 {[%clk 0:02:58]}  d5 {[%clk 0:02:51]} 11. Nce5 {[%clk 0:02:57]}  Bd6 {[%clk 0:02:49]} 12. Nxc6 {[%clk 0:02:56]}  Bxc6 {[%clk 0:02:45]} 13. Qh4 {[%clk 0:02:53]}  O-O {[%clk 0:02:43]} 14. Bg5 {[%clk 0:02:47]}  h6 {[%clk 0:02:43]} 15. Be3 {[%clk 0:02:44]}  e5 {[%clk 0:02:21]} 16. Rac1 {[%clk 0:02:39]}  Bb7 {[%clk 0:02:11]} 17. Bc5 {[%clk 0:02:38]}  Bxc5 {[%clk 0:01:55]} 18. Rxc5 {[%clk 0:02:39]}  Qb6 {[%clk 0:01:55]} 19. Rc2 {[%clk 0:02:35]}  e4 {[%clk 0:01:50]} 20. Ne5 {[%clk 0:02:30]}  Qe6 {[%clk 0:01:37]} 21. f4 {[%clk 0:02:26]}  exf3 {[%clk 0:01:36]} 22. Nxf3 {[%clk 0:02:26]}  Qe3+ {[%clk 0:01:36]} 23. Kh1 {[%clk 0:02:26]}  Ne4 {[%clk 0:01:33]} 24. g4 {[%clk 0:02:16]}  Rac8 {[%clk 0:01:17]} 25. Rxc8 {[%clk 0:02:15]}  Rxc8 {[%clk 0:01:18]} 26. Ne5 {[%clk 0:02:09]}  Nd2 {[%clk 0:00:34]} 27. Qe7 {[%clk 0:01:43]}  Nxf1 {[%clk 0:00:34]} 28. Qxf7+ {[%clk 0:01:39]}  Kh8 {[%clk 0:00:35]} 29. Ng6+ {[%clk 0:01:11]}  Kh7 {[%clk 0:00:34]} 30. Nf8+ {[%clk 0:00:59]}  Rxf8 {[%clk 0:00:17]} 31. Qxf8 {[%clk 0:01:00]}  Qxe2 {[%clk 0:00:16]} 32. Qf5+ {[%clk 0:00:57]}  Kg8 {[%clk 0:00:16]} 33. Bxf1 {[%clk 0:00:45]}  d4+ {[%clk 0:00:08]} 34. Kg1 {[%clk 0:00:45]}  Qe3+ {[%clk 0:00:09]} 35. Qf2 {[%clk 0:00:45]}  Qe4 {[%clk 0:00:09]} 36. Bc4+ {[%clk 0:00:38]}  Bd5 {[%clk 0:00:04]} 37. Bxd5+ {[%clk 0:00:38]}  Qxd5 {[%clk 0:00:05]} 38. Qf5 {[%clk 0:00:34]}  Qd6 {[%clk 0:00:02]} 39. Qd3 {[%clk 0:00:28]}  Qf4 {[%clk 0:00:03]} 40. h3 {[%clk 0:00:26]}  Qc1+ {[%clk 0:00:03]} 41. Qf1 {[%clk 0:00:24]}  Qxb2 {[%clk 0:00:01]} 42. Qc4+ {[%clk 0:00:25]}  Kf8 {[%clk 0:00:02]} 43. Qc5+ {[%clk 0:00:21]}  Kf7 {[%clk 0:00:03]} 44. Qc4+ {[%clk 0:00:20]}  Ke7 {[%clk 0:00:03]} 45. Qc5+ {[%clk 0:00:17]}  Ke6 {[%clk 0:00:04]} 46. Qc4+ {[%clk 0:00:16]}  Ke5 {[%clk 0:00:04]} 47. a4 {[%clk 0:00:10]}  Qb1+ {[%clk 0:00:03]} 48. Kh2 {[%clk 0:00:10]}  Qb2+ {[%clk 0:00:03]} 49. Kh1 {[%clk 0:00:09]}  Qc3 {[%clk 0:00:03]} 50. Qf7 {[%clk 0:00:07]}  Qxh3+ {[%clk 0:00:03]} 51. Kg1 {[%clk 0:00:07]}  Qxg4+ {[%clk 0:00:04]} 52. Kh1 {[%clk 0:00:07]}  Qh3+ {[%clk 0:00:04]} 53. Kg1 {[%clk 0:00:08]}  Qe3+ {[%clk 0:00:05]} 54. Kh1 {[%clk 0:00:08]}  Qe4+ {[%clk 0:00:05]} 55. Kg1 {[%clk 0:00:08]}  d3 {[%clk 0:00:05]} 56. Qxg7+ {[%clk 0:00:08]}  Kd5 {[%clk 0:00:05]} 57. Qb7+ {[%clk 0:00:08]}  Kd4 {[%clk 0:00:05]} 58. Qb6+ {[%clk 0:00:08]}  Kc3 {[%clk 0:00:04]} 59. Qc5+ {[%clk 0:00:08]}  Kd2 {[%clk 0:00:04]} 60. Qa5+ {[%clk 0:00:08]}  Ke2 {[%clk 0:00:03]} 61. Qh5+ {[%clk 0:00:08]}  Qf3 {[%clk 0:00:04]} 62. Qh2+ {[%clk 0:00:04]}  Ke1 {[%clk 0:00:04]} 63. Qxh6 {[%clk 0:00:05]}  Qg4+ {[%clk 0:00:02]} 64. Kh1 {[%clk 0:00:04]}  Qe4+ {[%clk 0:00:03]} 65. Kg1 {[%clk 0:00:04]}  d2 {[%clk 0:00:03]} 0-1


[Site "https://www.chess.com"]